[Event "29. Klatovy C 2023"]
[Site "Klatovy"]
[Date "2023.07.02"]
[Round "2.1"]
[White "Petras, Milan"]
[Black "Pribyl, Josef"]
[Result "1/2-1/2"]
[ECO "B07"]
[WhiteElo "1866"]
[BlackElo "2230"]
[PlyCount "65"]
[EventDate "2023.07.01"]
[EventType "swiss"]
[EventRounds "9"]
[EventCountry "CZE"]
[TimeControl "120+30"]

1. e4 {[%emt 0:09:24]} Nf6 {[%emt 0:00:16]} 2. Nc3 {[%emt 0:00:48]} d6 {[%emt 0:00:21]} 3. d4 {[%emt 0:00:08]} c6 {[%emt 0:00:12]} 4. f4 {[%emt 0:01:01]} Qa5 {[%emt 0:00:02]} 5. Bd3 {[%emt 0:01:13]} e5 {[%emt 0:00:07]} 6. Nf3 {[%emt 0:05:26]} Bg4 {[%emt 0:00:02]} 7. Be3 {[%emt 0:01:42]} Nbd7 {[%emt 0:04:31]} 8. Qd2 {[%emt 0:40:47]} Bxf3 {[%emt 0:03:11]} 9. gxf3 {[%emt 0:00:02]} Be7 {[%emt 0:00:23]} 10. O-O-O {[%emt 0:02:20]} Nh5 {[%emt 0:02:38]} 11. Kb1 {[%emt 0:04:52]} exf4 {[%emt 0:04:07]} 12. Bxf4 {[%emt 0:02:00]} Nxf4 {[%emt 0:00:25]} 13. Qxf4 {[%emt 0:00:02]} Qg5 {[%emt 0:00:21]} 14. Ne2 {[%emt 0:04:53]} Qxf4 {[%emt 0:04:36]} 15. Nxf4 {[%emt 0:00:02]} Bg5 {[%emt 0:00:18]} 16. Ng2 {[%emt 0:00:22]} O-O {[%emt 0:04:47]} 17. f4 {[%emt 0:00:54]} Bh6 {[%emt 0:00:18]} 18. Rhf1 {[%emt 0:04:09]} g6 {[%emt 0:07:56]} 19. Ne3 {[%emt 0:05:42]} Rad8 {[%emt 0:01:43]} 20. c3 {[%emt 0:02:10]} Nf6 {[%emt 0:06:31]} 21. Rf3 {[%emt 0:12:44]} Rfe8 {[%emt 0:06:35]} 22. e5 {[%emt 0:00:18]} dxe5 {[%emt 0:08:08]} 23. fxe5 {[%emt 0:00:07]} Nd5 {[%emt 0:06:20]} 24. Ng4 {[%emt 0:02:05]} Bg7 {[%emt 0:00:57]} 25. Bc4 {[%emt 0:05:00]} h5 {[%emt 0:03:55]} 26. Ne3 {[%emt 0:05:41]} Re7 {[%emt 0:00:29]} 27. Nxd5 {[%emt 0:06:27]} cxd5 {[%emt 0:00:02]} 28. Bd3 {[%emt 0:00:02]} Rc8 {[%emt 0:02:15]} 29. Rdf1 {[%emt 0:00:15]} a6 {[%emt 0:03:20]} 30. a4 {[%emt 0:00:02]} Rc6 {[%emt 0:03:31]} 31. Bc2 {[%emt 0:01:18]} Rcc7 {[%emt 0:04:17]} 32. Bb3 {[%emt 0:00:15]} Rcd7 {[%emt 0:00:05]} 33. Kc2 {[%emt 0:00:55]} 1/2-1/2

[Event "29. Klatovy C 2023"]
[Site "Klatovy"]
[Date "2023.07.02"]
[Round "2.2"]
[White "Cecil, Pavel"]
[Black "Korsa, Jindrich"]
[Result "1/2-1/2"]
[ECO "D30"]
[WhiteElo "1845"]
[BlackElo "1997"]
[PlyCount "65"]
[EventDate "2023.07.01"]
[EventType "swiss"]
[EventRounds "9"]
[EventCountry "CZE"]
[TimeControl "120+30"]

1. Nf3 {[%emt 0:00:04]} d5 {[%emt 0:00:23]} 2. d4 {[%emt 0:00:15]} Nf6 {[%emt 0:00:22]} 3. e3 {[%emt 0:00:20]} e6 {[%emt 0:00:33]} 4. c4 {[%emt 0:00:24]} c6 {[%emt 0:00:23]} 5. Nbd2 {[%emt 0:00:23]} Bd6 {[%emt 0:00:58]} 6. Bd3 {[%emt 0:00:29]} Nbd7 {[%emt 0:00:40]} 7. O-O {[%emt 0:00:53]} O-O {[%emt 0:00:26]} 8. b3 {[%emt 0:00:42]} e5 {[%emt 0:01:52]} 9. cxd5 {[%emt 0:03:58]} cxd5 {[%emt 0:00:35]} 10. dxe5 {[%emt 0:01:07]} Nxe5 {[%emt 0:00:17]} 11. Nxe5 {[%emt 0:01:00]} Bxe5 {[%emt 0:00:06]} 12. Ba3 {[%emt 0:00:53]} Bxa1 {[%emt 0:04:07]} 13. Bxf8 {[%emt 0:00:16]} Be5 {[%emt 0:00:42]} 14. Bb4 {[%emt 0:01:29]} Bg4 {[%emt 0:02:27]} 15. Qb1 {[%emt 0:02:26]} Qb6 {[%emt 0:01:26]} 16. Be7 {[%emt 0:03:12]} g6 {[%emt 0:02:28]} 17. Rc1 {[%emt 0:02:21]} Qe6 {[%emt 0:07:58]} 18. Ba3 {[%emt 0:01:39]} Re8 {[%emt 0:04:50]} 19. Bb2 {[%emt 0:07:49]} Bb8 {[%emt 0:07:37]} 20. Bd4 {[%emt 0:02:20]} Qd6 {[%emt 0:04:31]} 21. Nf1 {[%emt 0:00:42]} Bd7 {[%emt 0:02:03]} 22. Qb2 {[%emt 0:03:59]} Ng4 {[%emt 0:01:35]} 23. h3 {[%emt 0:04:44]} Ne5 {[%emt 0:01:56]} 24. Be2 {[%emt 0:02:52]} Nc6 {[%emt 0:04:52]} 25. Bc5 {[%emt 0:05:39]} Qe6 {[%emt 0:00:09]} 26. Bg4 {[%emt 0:01:50]} f5 {[%emt 0:00:08]} 27. Be2 {[%emt 0:01:06]} b6 {[%emt 0:06:27]} 28. Ba3 {[%emt 0:00:27]} Ne5 {[%emt 0:03:13]} 29. Qd2 {[%emt 0:01:38]} Rd8 {[%emt 0:00:44]} 30. Bb2 {[%emt 0:00:54]} Nc6 {[%emt 0:07:38]} 31. Bf3 {[%emt 0:02:12]} Be8 {[%emt 0:00:37]} 32. Rd1 {[%emt 0:00:59]} Bf7 {[%emt 0:00:34]} 33. Rc1 {[%emt 0:02:30]} 1/2-1/2

[Event "29. Klatovy C 2023"]
[Site "Klatovy"]
[Date "2023.07.02"]
[Round "2.3"]
[White "Chalus, Karel"]
[Black "Sibl, Vaclav"]
[Result "1-0"]
[ECO "C41"]
[WhiteElo "1975"]
[BlackElo "1840"]
[PlyCount "79"]
[EventDate "2023.07.01"]
[EventType "swiss"]
[EventRounds "9"]
[EventCountry "CZE"]
[TimeControl "120+30"]

1. e4 {[%emt 0:00:03]} d6 {[%emt 0:00:28]} 2. d4 {[%emt 0:00:07]} Nf6 {[%emt 0:00:07]} 3. Nc3 {[%emt 0:00:06]} e5 {[%emt 0:00:18]} 4. Nf3 {[%emt 0:00:10]} Nbd7 {[%emt 0:00:07]} 5. Bc4 {[%emt 0:00:12]} Be7 {[%emt 0:00:07]} 6. O-O {[%emt 0:00:31]} c6 {[%emt 0:00:16]} 7. a4 {[%emt 0:00:16]} h6 {[%emt 0:00:24]} 8. Qe2 {[%emt 0:03:35]} Qc7 {[%emt 0:01:01]} 9. a5 {[%emt 0:11:21]} g5 {[%emt 0:02:24]} 10. d5 {[%emt 0:29:19]} Nf8 {[%emt 0:01:29]} 11. a6 {[%emt 0:06:02]} b5 {[%emt 0:01:27]} 12. Bb3 {[%emt 0:01:12]} b4 {[%emt 0:00:14]} 13. Ba4 {[%emt 0:00:59]} Bd7 {[%emt 0:05:10]} 14. dxc6 {[%emt 0:04:30]} Bxc6 {[%emt 0:02:40]} 15. Nd5 {[%emt 0:00:45]} Nxd5 {[%emt 0:01:38]} 16. exd5 {[%emt 0:00:13]} Bxa4 {[%emt 0:00:32]} 17. Rxa4 {[%emt 0:00:08]} Rb8 {[%emt 0:00:59]} 18. Qe4 {[%emt 0:02:34]} Nd7 {[%emt 0:03:53]} 19. Rxb4 {[%emt 0:05:09]} Rxb4 {[%emt 0:01:11]} 20. Qxb4 {[%emt 0:00:20]} O-O {[%emt 0:00:19]} 21. h4 {[%emt 0:04:06]} Rb8 {[%emt 0:00:39]} 22. Qd2 {[%emt 0:07:05]} f6 {[%emt 0:05:37]} 23. Qd3 {[%emt 0:01:38]} Kg7 {[%emt 0:00:16]} 24. h5 {[%emt 0:02:34]} Nf8 {[%emt 0:00:20]} 25. b3 {[%emt 0:01:54]} Qd7 {[%emt 0:00:54]} 26. Be3 {[%emt 0:00:48]} f5 {[%emt 0:00:27]} 27. c4 {[%emt 0:07:09]} e4 {[%emt 0:01:38]} 28. Qc3+ {[%emt 0:00:19]} Bf6 {[%emt 0:00:33]} 29. Bd4 {[%emt 0:00:14]} Nh7 {[%emt 0:04:48]} 30. Bxf6+ {[%emt 0:01:10]} Nxf6 {[%emt 0:00:13]} 31. Nd4 {[%emt 0:00:32]} Kf7 {[%emt 0:00:19]} 32. f3 {[%emt 0:02:34]} exf3 {[%emt 0:02:30]} 33. Qxf3 {[%emt 0:06:04]} f4 {[%emt 0:03:48]} 34. Qd3 {[%emt 0:00:28]} Nxh5 {[%emt 0:00:59]} 35. Qh7+ {[%emt 0:01:56]} Ng7 {[%emt 0:00:35]} 36. Ne6 {[%emt 0:01:37]} Rg8 {[%emt 0:00:56]} 37. g3 {[%emt 0:00:41]} Qe7 {[%emt 0:01:53]} 38. Nxf4 {[%emt 0:06:52]} Qe3+ {[%emt 0:04:17]} 39. Kh2 {[%emt 0:01:54]} Qd2+ {[%emt 0:02:41]} 40. Ng2+ {[%emt 0:00:11]} 1-0

[Event "29. Klatovy C 2023"]
[Site "Klatovy"]
[Date "2023.07.02"]
[Round "2.4"]
[White "Ondrejat, Miroslav"]
[Black "Turner, Radek"]
[Result "1/2-1/2"]
[ECO "A68"]
[WhiteElo "1834"]
[BlackElo "1991"]
[PlyCount "20"]
[EventDate "2023.07.01"]
[EventType "swiss"]
[EventRounds "9"]
[EventCountry "CZE"]
[TimeControl "120+30"]

1. c4 {[%emt 0:00:00]} Nf6 {[%emt 0:00:16]} 2. Nc3 {[%emt 0:00:03]} g6 {[%emt 0:00:07]} 3. d4 {[%emt 0:00:23]} Bg7 {[%emt 0:00:09]} 4. e4 {[%emt 0:00:02]} d6 {[%emt 0:00:12]} 5. f4 {[%emt 0:00:09]} c5 {[%emt 0:00:46]} 6. d5 {[%emt 0:00:04]} O-O {[%emt 0:00:56]} 7. Nf3 {[%emt 0:00:08]} e6 {[%emt 0:04:37]} 8. Bd3 {[%emt 0:14:31]} exd5 {[%emt 0:00:25]} 9. cxd5 {[%emt 0:00:05]} a6 {[%emt 0:00:39]} 10. a4 {[%emt 0:00:11]} Bg4 {[%emt 0:02:48]} 1/2-1/2

[Event "29. Klatovy C 2023"]
[Site "Klatovy"]
[Date "2023.07.02"]
[Round "2.5"]
[White "Baumruk, Josef"]
[Black "Zednik, Zdenek"]
[Result "1/2-1/2"]
[ECO "B20"]
[WhiteElo "1947"]
[BlackElo "1836"]
[PlyCount "111"]
[EventDate "2023.07.01"]
[EventType "swiss"]
[EventRounds "9"]
[EventCountry "CZE"]
[TimeControl "120+30"]

1. e4 {[%emt 0:00:02]} c5 {[%emt 0:00:22]} 2. g3 {[%emt 0:00:10]} Nc6 {[%emt 0:00:15]} 3. Bg2 {[%emt 0:00:08]} Nf6 {[%emt 0:00:22]} 4. Ne2 {[%emt 0:00:14]} g6 {[%emt 0:00:18]} 5. O-O {[%emt 0:00:07]} Bg7 {[%emt 0:00:04]} 6. c3 {[%emt 0:00:27]} d5 {[%emt 0:02:58]} 7. d3 {[%emt 0:00:32]} d4 {[%emt 0:02:56]} 8. cxd4 {[%emt 0:03:46]} cxd4 {[%emt 0:03:36]} 9. h3 {[%emt 0:01:26]} O-O {[%emt 0:00:09]} 10. b3 {[%emt 0:01:22]} e5 {[%emt 0:00:43]} 11. Kh2 {[%emt 0:03:19]} b6 {[%emt 0:02:02]} 12. Ba3 {[%emt 0:02:24]} Re8 {[%emt 0:00:09]} 13. b4 {[%emt 0:07:04]} Bb7 {[%emt 0:07:30]} 14. Nd2 {[%emt 0:02:11]} Rc8 {[%emt 0:00:30]} 15. b5 {[%emt 0:04:45]} Na5 {[%emt 0:01:30]} 16. Bb4 {[%emt 0:01:31]} a6 {[%emt 0:04:59]} 17. a4 {[%emt 0:01:11]} Nd7 {[%emt 0:01:39]} 18. Bxa5 {[%emt 0:12:47]} bxa5 {[%emt 0:00:08]} 19. Nc4 {[%emt 0:00:07]} Bf8 {[%emt 0:00:21]} 20. f4 {[%emt 0:01:23]} Bb4 {[%emt 0:02:53]} 21. Rb1 {[%emt 0:05:00]} exf4 {[%emt 0:04:57]} 22. Rxf4 {[%emt 0:07:16]} Ne5 {[%emt 0:00:26]} 23. Nxe5 {[%emt 0:00:42]} Rxe5 {[%emt 0:00:16]} 24. Qb3 {[%emt 0:00:37]} Rc7 {[%emt 0:04:09]} 25. Rc1 {[%emt 0:08:02]} Ree7 {[%emt 0:00:23]} 26. Rxc7 {[%emt 0:07:14]} Rxc7 {[%emt 0:01:39]} 27. bxa6 {[%emt 0:00:32]} Bxa6 {[%emt 0:00:29]} 28. e5 {[%emt 0:00:21]} Qe8 {[%emt 0:05:01]} 29. Rxd4 {[%emt 0:13:07]} Qxe5 {[%emt 0:00:41]} 30. Re4 {[%emt 0:00:56]} Qf6 {[%emt 0:07:08]} 31. Nf4 {[%emt 0:02:56]} Rc3 {[%emt 0:22:32]} 32. Qb2 {[%emt 0:04:07]} Rc6 {[%emt 0:08:53]} 33. Re8+ {[%emt 0:08:41]} Kg7 {[%emt 0:00:36]} 34. Qe2 {[%emt 0:01:23]} Rc8 {[%emt 0:01:35]} 35. Rxc8 {[%emt 0:00:58]} Bxc8 {[%emt 0:00:11]} 36. Nd5 {[%emt 0:00:08]} Qd4 {[%emt 0:01:15]} 37. Qc2 {[%emt 0:04:07]} Bc5 {[%emt 0:06:58]} 38. Qc3 {[%emt 0:01:23]} Bd7 {[%emt 0:01:32]} 39. Qxd4+ {[%emt 0:03:50]} Bxd4 {[%emt 0:00:11]} 40. Nf4 {[%emt 0:01:34]} Bxa4 {[%emt 0:00:24]} 41. Bd5 {[%emt 0:00:29]} Bc2 {[%emt 0:00:58]} 42. Kg2 {[%emt 0:04:40]} a4 {[%emt 0:00:51]} 43. Kf3 {[%emt 0:01:27]} Bb3 {[%emt 0:03:02]} 44. Ke4 {[%emt 0:00:23]} Bc5 {[%emt 0:02:25]} 45. d4 {[%emt 0:00:40]} Bb4 {[%emt 0:00:40]} 46. Bxb3 {[%emt 0:03:05]} axb3 {[%emt 0:00:08]} 47. Kd3 {[%emt 0:00:03]} f5 {[%emt 0:00:33]} 48. Nd5 {[%emt 0:00:45]} Ba5 {[%emt 0:00:26]} 49. Nc3 {[%emt 0:00:35]} g5 {[%emt 0:04:45]} 50. Na4 {[%emt 0:00:38]} Bc7 {[%emt 0:01:22]} 51. g4 {[%emt 0:00:58]} f4 {[%emt 0:00:11]} 52. Nc5 {[%emt 0:01:18]} f3 {[%emt 0:03:17]} 53. Nxb3 {[%emt 0:00:19]} Bf4 {[%emt 0:01:03]} 54. Nd2 {[%emt 0:00:58]} f2 {[%emt 0:02:19]} 55. Nf1 {[%emt 0:00:07]} Kf6 {[%emt 0:01:14]} 56. Ke2 {[%emt 0:01:27]} 1/2-1/2

[Event "29. Klatovy C 2023"]
[Site "Klatovy"]
[Date "2023.07.02"]
[Round "2.6"]
[White "Hlavac, Rudolf"]
[Black "Richter, Martin1"]
[Result "1-0"]
[ECO "C03"]
[WhiteElo "1845"]
[BlackElo "1946"]
[PlyCount "87"]
[EventDate "2023.07.01"]
[EventType "swiss"]
[EventRounds "9"]
[EventCountry "CZE"]
[TimeControl "120+30"]

1. e4 {[%emt 0:00:03]} e6 {[%emt 0:00:12]} 2. d4 {[%emt 0:00:25]} d5 {[%emt 0:00:13]} 3. Nd2 {[%emt 0:00:14]} a6 {[%emt 0:00:16]} 4. exd5 {[%emt 0:01:40]} exd5 {[%emt 0:00:17]} 5. Bd3 {[%emt 0:04:09]} Nf6 {[%emt 0:00:38]} 6. Ngf3 {[%emt 0:00:50]} Bg4 {[%emt 0:01:18]} 7. O-O {[%emt 0:00:29]} Be7 {[%emt 0:00:49]} 8. Re1 {[%emt 0:00:19]} O-O {[%emt 0:00:33]} 9. c3 {[%emt 0:00:51]} c5 {[%emt 0:01:50]} 10. dxc5 {[%emt 0:01:21]} Bxc5 {[%emt 0:00:24]} 11. Nb3 {[%emt 0:02:33]} Ba7 {[%emt 0:00:36]} 12. Be3 {[%emt 0:00:33]} Nc6 {[%emt 0:02:12]} 13. Bxa7 {[%emt 0:01:26]} Rxa7 {[%emt 0:00:26]} 14. h3 {[%emt 0:01:30]} Bh5 {[%emt 0:00:14]} 15. Re3 {[%emt 0:05:22]} Re8 {[%emt 0:15:36]} 16. Qd2 {[%emt 0:01:02]} Ne4 {[%emt 0:23:18]} 17. Qc2 {[%emt 0:08:12]} f5 {[%emt 0:00:43]} 18. Nbd4 {[%emt 0:04:20]} Bg6 {[%emt 0:10:11]} 19. a3 {[%emt 0:14:16]} Qf6 {[%emt 0:02:20]} 20. Qb3 {[%emt 0:04:16]} Bf7 {[%emt 0:02:56]} 21. Qb6 {[%emt 0:01:02]} Raa8 {[%emt 0:13:43]} 22. Rc1 {[%emt 0:02:11]} Re7 {[%emt 0:02:43]} 23. Ree1 {[%emt 0:07:58]} Rae8 {[%emt 0:04:02]} 24. Nxc6 {[%emt 0:04:41]} bxc6 {[%emt 0:01:55]} 25. Nd4 {[%emt 0:02:21]} c5 {[%emt 0:15:20]} 26. Qxf6 {[%emt 0:01:27]} Nxf6 {[%emt 0:00:07]} 27. Rxe7 {[%emt 0:00:19]} Rxe7 {[%emt 0:00:05]} 28. Nxf5 {[%emt 0:01:12]} Rb7 {[%emt 0:01:09]} 29. b4 {[%emt 0:04:04]} c4 {[%emt 0:00:16]} 30. Bc2 {[%emt 0:01:09]} Ne8 {[%emt 0:02:09]} 31. Re1 {[%emt 0:03:32]} Kf8 {[%emt 0:03:47]} 32. Ba4 {[%emt 0:01:33]} Rc7 {[%emt 0:03:59]} 33. Bxe8 {[%emt 0:02:26]} Bxe8 {[%emt 0:00:07]} 34. Re5 {[%emt 0:00:48]} Bc6 {[%emt 0:03:44]} 35. Nd4 {[%emt 0:00:51]} Kf7 {[%emt 0:02:34]} 36. Nxc6 {[%emt 0:01:23]} Rxc6 {[%emt 0:00:05]} 37. Rxd5 {[%emt 0:00:17]} Ke6 {[%emt 0:00:15]} 38. Rd4 {[%emt 0:00:33]} g6 {[%emt 0:01:17]} 39. f4 {[%emt 0:00:35]} Rc7 {[%emt 0:00:12]} 40. Kf2 {[%emt 0:00:16]} a5 {[%emt 0:00:24]} 41. g4 {[%emt 0:00:37]} axb4 {[%emt 0:00:21]} 42. axb4 {[%emt 0:00:15]} Rc8 {[%emt 0:00:33]} 43. Ke3 {[%emt 0:00:25]} Kf6 {[%emt 0:01:41]} 44. Rd5 {[%emt 0:01:34]} 1-0

[Event "29. Klatovy C 2023"]
[Site "Klatovy"]
[Date "2023.07.02"]
[Round "2.7"]
[White "Kucera, Jiri"]
[Black "Skopec, Lubos"]
[Result "0-1"]
[ECO "A07"]
[WhiteElo "1920"]
[BlackElo "1824"]
[PlyCount "110"]
[EventDate "2023.07.01"]
[EventType "swiss"]
[EventRounds "9"]
[EventCountry "CZE"]
[TimeControl "120+30"]

1. Nf3 {[%emt 0:00:28]} Nf6 {[%emt 0:00:22]} 2. g3 {[%emt 0:01:29]} d5 {[%emt 0:00:35]} 3. Bg2 {[%emt 0:00:37]} e6 {[%emt 0:00:25]} 4. O-O {[%emt 0:00:48]} Be7 {[%emt 0:00:34]} 5. d3 {[%emt 0:00:47]} O-O {[%emt 0:00:38]} 6. Nbd2 {[%emt 0:01:03]} Nbd7 {[%emt 0:01:04]} 7. e4 {[%emt 0:00:47]} c6 {[%emt 0:08:32]} 8. e5 {[%emt 0:06:35]} Ne8 {[%emt 0:00:51]} 9. Re1 {[%emt 0:01:06]} b6 {[%emt 0:03:00]} 10. Nf1 {[%emt 0:02:23]} Bb7 {[%emt 0:01:38]} 11. h4 {[%emt 0:00:20]} c5 {[%emt 0:01:42]} 12. Bf4 {[%emt 0:04:12]} Rc8 {[%emt 0:04:06]} 13. c4 {[%emt 0:06:13]} Nc7 {[%emt 0:09:27]} 14. Qe2 {[%emt 0:23:32]} Re8 {[%emt 0:06:11]} 15. Ne3 {[%emt 0:06:39]} f5 {[%emt 0:10:03]} 16. cxd5 {[%emt 0:14:26]} Nxd5 {[%emt 0:03:20]} 17. Nxd5 {[%emt 0:00:38]} Bxd5 {[%emt 0:01:15]} 18. Ng5 {[%emt 0:01:05]} Nf8 {[%emt 0:00:58]} 19. Bxd5 {[%emt 0:12:27]} Qxd5 {[%emt 0:01:21]} 20. h5 {[%emt 0:07:58]} Bxg5 {[%emt 0:17:59]} 21. Bxg5 {[%emt 0:00:07]} Nd7 {[%emt 0:00:52]} 22. b3 {[%emt 0:01:56]} Qd4 {[%emt 0:07:52]} 23. Rac1 {[%emt 0:09:36]} Nb8 {[%emt 0:00:46]} 24. Rc4 {[%emt 0:00:21]} Qd7 {[%emt 0:03:43]} 25. g4 {[%emt 0:00:26]} Rf8 {[%emt 0:01:18]} 26. gxf5 {[%emt 0:07:17]} Rxf5 {[%emt 0:00:17]} 27. Rg4 {[%emt 0:00:01]} Kh8 {[%emt 0:02:00]} 28. h6 {[%emt 0:00:36]} g6 {[%emt 0:02:23]} 29. Bf6+ {[%emt 0:01:57]} Kg8 {[%emt 0:00:02]} 30. Qe4 {[%emt 0:00:28]} Kf7 {[%emt 0:05:15]} 31. Rg5 {[%emt 0:10:24]} Nc6 {[%emt 0:10:05]} 32. Rxf5 {[%emt 0:02:39]} gxf5 {[%emt 0:00:06]} 33. Qh4 {[%emt 0:00:03]} Rg8+ {[%emt 0:08:23]} 34. Kh2 {[%emt 0:00:25]} Rg6 {[%emt 0:05:35]} 35. Rg1 {[%emt 0:02:02]} Rxg1 {[%emt 0:02:46]} 36. Kxg1 {[%emt 0:00:06]} Ne7 {[%emt 0:03:50]} 37. Bg7 {[%emt 0:02:18]} Nd5 {[%emt 0:02:04]} 38. Qh5+ {[%emt 0:00:23]} Kg8 {[%emt 0:00:14]} 39. Qg5 {[%emt 0:00:00]} Qe8 {[%emt 0:06:03]} 40. a3 {[%emt 0:00:49]} Qg6 {[%emt 0:00:19]} 41. Bf6 {[%emt 0:01:22]} Nf4 {[%emt 0:00:47]} 42. Kf1 {[%emt 0:02:48]} Qxg5 {[%emt 0:00:19]} 43. Bxg5 {[%emt 0:00:02]} Nxd3 {[%emt 0:00:11]} 44. Ke2 {[%emt 0:01:22]} Nxe5 {[%emt 0:00:20]} 45. Bf4 {[%emt 0:00:00]} Nd7 {[%emt 0:00:37]} 46. Kd3 {[%emt 0:00:08]} e5 {[%emt 0:00:23]} 47. Bg5 {[%emt 0:01:27]} b5 {[%emt 0:01:20]} 48. a4 {[%emt 0:00:11]} a6 {[%emt 0:00:10]} 49. Be7 {[%emt 0:00:47]} Kf7 {[%emt 0:00:10]} 50. Bg5 {[%emt 0:00:32]} Ke6 {[%emt 0:00:06]} 51. axb5 {[%emt 0:00:28]} axb5 {[%emt 0:00:04]} 52. Be3 {[%emt 0:00:31]} f4 {[%emt 0:00:49]} 53. Bd2 {[%emt 0:00:08]} Kd5 {[%emt 0:00:12]} 54. f3 {[%emt 0:00:04]} Nf6 {[%emt 0:00:26]} 55. Bc3 {[%emt 0:00:48]} Ng8 {[%emt 0:00:16]} 0-1

[Event "29. Klatovy C 2023"]
[Site "Klatovy"]
[Date "2023.07.03"]
[Round "3.1"]
[White "Novotny, Jaroslav2"]
[Black "Chalus, Karel"]
[Result "1/2-1/2"]
[ECO "B00"]
[WhiteElo "1890"]
[BlackElo "1975"]
[PlyCount "20"]
[EventDate "2023.07.01"]
[EventType "swiss"]
[EventRounds "9"]
[EventCountry "CZE"]
[TimeControl "120+30"]

1. e4 {[%emt 0:00:05]} b6 {[%emt 0:00:40]} 2. d4 {[%emt 0:00:14]} Bb7 {[%emt 0:00:17]} 3. Bd3 {[%emt 0:00:44]} e6 {[%emt 0:00:33]} 4. Nf3 {[%emt 0:01:28]} Nf6 {[%emt 0:01:30]} 5. Qe2 {[%emt 0:01:56]} d5 {[%emt 0:10:09]} 6. e5 {[%emt 0:01:50]} Nfd7 {[%emt 0:07:59]} 7. O-O {[%emt 0:00:50]} c5 {[%emt 0:01:58]} 8. c3 {[%emt 0:00:04]} Nc6 {[%emt 0:00:27]} 9. a3 {[%emt 0:01:21]} c4 {[%emt 0:12:31]} 10. Bc2 {[%emt 0:00:02]} Be7 {[%emt 0:00:00]} 1/2-1/2

[Event "29. Klatovy C 2023"]
[Site "Klatovy"]
[Date "2023.07.03"]
[Round "3.2"]
[White "Skopec, Lubos"]
[Black "Sedlak, Ludek"]
[Result "1/2-1/2"]
[ECO "B22"]
[WhiteElo "1824"]
[BlackElo "1885"]
[PlyCount "34"]
[EventDate "2023.07.01"]
[EventType "swiss"]
[EventRounds "9"]
[EventCountry "CZE"]
[TimeControl "120+30"]

1. e4 {[%emt 0:00:02]} c5 {[%emt 0:00:32]} 2. c3 {[%emt 0:00:29]} d5 {[%emt 0:00:46]} 3. exd5 {[%emt 0:00:11]} Qxd5 {[%emt 0:00:06]} 4. d4 {[%emt 0:00:15]} Nf6 {[%emt 0:00:25]} 5. Nf3 {[%emt 0:00:21]} e6 {[%emt 0:00:41]} 6. Be2 {[%emt 0:00:28]} Nc6 {[%emt 0:02:04]} 7. O-O {[%emt 0:01:32]} cxd4 {[%emt 0:00:45]} 8. cxd4 {[%emt 0:00:24]} Be7 {[%emt 0:00:13]} 9. Nc3 {[%emt 0:00:12]} Qd6 {[%emt 0:00:39]} 10. Bg5 {[%emt 0:04:08]} O-O {[%emt 0:02:04]} 11. Qd2 {[%emt 0:09:33]} Nd5 {[%emt 0:09:11]} 12. Bxe7 {[%emt 0:11:35]} Ncxe7 {[%emt 0:06:30]} 13. Rfd1 {[%emt 0:02:58]} Nc6 {[%emt 0:09:00]} 14. Bc4 {[%emt 0:05:08]} Rd8 {[%emt 0:04:24]} 15. Rac1 {[%emt 0:07:23]} Bd7 {[%emt 0:18:16]} 16. h3 {[%emt 0:24:59]} Rac8 {[%emt 0:03:12]} 17. Nxd5 {[%emt 0:01:14]} exd5 {[%emt 0:00:13]} 1/2-1/2

[Event "29. Klatovy C 2023"]
[Site "Klatovy"]
[Date "2023.07.03"]
[Round "3.3"]
[White "Pribyl, Josef"]
[Black "Hlavac, Rudolf"]
[Result "1-0"]
[ECO "D77"]
[WhiteElo "2230"]
[BlackElo "1845"]
[PlyCount "45"]
[EventDate "2023.07.01"]
[EventType "swiss"]
[EventRounds "9"]
[EventCountry "CZE"]
[TimeControl "120+30"]

1. d4 {[%emt 0:00:14]} d5 {[%emt 0:00:15]} 2. Nf3 {[%emt 0:00:20]} Nf6 {[%emt 0:00:18]} 3. g3 {[%emt 0:00:24]} g6 {[%emt 0:01:00]} 4. Bg2 {[%emt 0:00:07]} Bg7 {[%emt 0:00:12]} 5. O-O {[%emt 0:00:04]} O-O {[%emt 0:01:46]} 6. c4 {[%emt 0:00:00]} dxc4 {[%emt 0:01:04]} 7. Na3 {[%emt 0:00:00]} c5 {[%emt 0:05:57]} 8. dxc5 {[%emt 0:00:25]} Ne4 {[%emt 0:01:34]} 9. Nxc4 {[%emt 0:00:38]} Nxc5 {[%emt 0:04:11]} 10. Be3 {[%emt 0:01:30]} Nbd7 {[%emt 0:00:55]} 11. Rc1 {[%emt 0:00:56]} a6 {[%emt 0:03:31]} 12. b4 {[%emt 0:03:27]} Ne6 {[%emt 0:03:44]} 13. Qb3 {[%emt 0:00:29]} b5 {[%emt 0:00:44]} 14. Na5 {[%emt 0:00:33]} Qe8 {[%emt 0:04:51]} 15. Ng5 {[%emt 0:03:20]} Nxg5 {[%emt 0:00:43]} 16. Bxa8 {[%emt 0:00:03]} Nh3+ {[%emt 0:00:28]} 17. Kg2 {[%emt 0:07:31]} Nf6 {[%emt 0:02:12]} 18. Bc6 {[%emt 0:01:11]} Qd8 {[%emt 0:03:40]} 19. Rfd1 {[%emt 0:01:34]} Qc7 {[%emt 0:00:54]} 20. Bf3 {[%emt 0:03:51]} Qb8 {[%emt 0:03:42]} 21. Nc6 {[%emt 0:01:00]} Qc7 {[%emt 0:00:21]} 22. Na7 {[%emt 0:00:26]} Qb8 {[%emt 0:00:43]} 23. Nxc8 {[%emt 0:01:05]} 1-0

[Event "29. Klatovy C 2023"]
[Site "Klatovy"]
[Date "2023.07.03"]
[Round "3.4"]
[White "Korsa, Jindrich"]
[Black "Petras, Milan"]
[Result "1/2-1/2"]
[ECO "C01"]
[WhiteElo "1997"]
[BlackElo "1866"]
[PlyCount "69"]
[EventDate "2023.07.01"]
[EventType "swiss"]
[EventRounds "9"]
[EventCountry "CZE"]
[TimeControl "120+30"]

1. e4 {[%emt 0:00:13]} e6 {[%emt 0:00:05]} 2. d4 {[%emt 0:00:13]} d5 {[%emt 0:00:04]} 3. exd5 {[%emt 0:00:11]} exd5 {[%emt 0:00:05]} 4. Nf3 {[%emt 0:00:12]} Bd6 {[%emt 0:00:17]} 5. Bd3 {[%emt 0:00:25]} Ne7 {[%emt 0:01:35]} 6. O-O {[%emt 0:00:42]} O-O {[%emt 0:01:23]} 7. Nbd2 {[%emt 0:01:08]} Bf5 {[%emt 0:01:35]} 8. Bxf5 {[%emt 0:02:24]} Nxf5 {[%emt 0:00:02]} 9. c4 {[%emt 0:01:41]} c6 {[%emt 0:10:54]} 10. Qb3 {[%emt 0:04:44]} b6 {[%emt 0:06:38]} 11. Rd1 {[%emt 0:02:03]} Bc7 {[%emt 0:11:18]} 12. Nf1 {[%emt 0:01:35]} dxc4 {[%emt 0:06:40]} 13. Qxc4 {[%emt 0:01:06]} Qd5 {[%emt 0:00:55]} 14. Qxd5 {[%emt 0:04:15]} cxd5 {[%emt 0:00:02]} 15. g4 {[%emt 0:00:36]} Ne7 {[%emt 0:02:51]} 16. Bd2 {[%emt 0:00:46]} Nbc6 {[%emt 0:02:08]} 17. Ne3 {[%emt 0:04:58]} Rac8 {[%emt 0:03:00]} 18. Rac1 {[%emt 0:04:22]} Bf4 {[%emt 0:28:22]} 19. Rc3 {[%emt 0:09:10]} Bxe3 {[%emt 0:05:16]} 20. fxe3 {[%emt 0:04:14]} f5 {[%emt 0:03:56]} 21. g5 {[%emt 0:00:27]} Kf7 {[%emt 0:07:26]} 22. Rdc1 {[%emt 0:00:38]} Ke6 {[%emt 0:00:13]} 23. Kf2 {[%emt 0:01:51]} Kd7 {[%emt 0:15:15]} 24. h4 {[%emt 0:04:21]} g6 {[%emt 0:07:04]} 25. b4 {[%emt 0:04:29]} a6 {[%emt 0:01:53]} 26. a4 {[%emt 0:06:32]} Ke6 {[%emt 0:01:22]} 27. Kg3 {[%emt 0:06:18]} Na7 {[%emt 0:00:19]} 28. Rc7 {[%emt 0:02:45]} Nac6 {[%emt 0:00:12]} 29. Rb7 {[%emt 0:07:07]} Rb8 {[%emt 0:00:39]} 30. Rxb8 {[%emt 0:00:14]} Rxb8 {[%emt 0:03:03]} 31. Ne1 {[%emt 0:03:23]} Nd8 {[%emt 0:03:38]} 32. Nd3 {[%emt 0:01:04]} Nb7 {[%emt 0:01:21]} 33. Ne5 {[%emt 0:06:24]} Nd6 {[%emt 0:00:39]} 34. Kf4 {[%emt 0:00:08]} Rc8 {[%emt 0:01:08]} 35. Rxc8 {[%emt 0:03:33]} 1/2-1/2